bitfinex/quotes_ETHUSD_20220219
["timestamp","ask_amount","ask_price","bid_price","bid_amount"]
[1645294763878,2.728,2761.6,2761.1,0.00287956]
[1645294764077,0.49513841,2761.4,2761.1,0.00287956]
[1645294764578,2.728,2761.6,2761.0,0.00343863]
[1645294764780,3.028,2761.6,2761.1,0.00287956]
[1645294764984,3.028,2761.6,2761.1,1.54152891]
[1645294765180,2.428,2761.6,2761.2,1.53864935]
[1645294765384,2.428,2761.6,2761.2,1.54208798]
[1645294765385,1.428,2761.6,2761.2,1.54208798]
[1645294765578,1.428,2761.6,2761.2,1.53864935]
[1645294765780,0.49634661,2761.5,2761.3,1.53864935]
[1645294765980,0.49634661,2761.5,2761.4,1.53864935]
[1645294766579,0.49634661,2761.5,2761.1,0.00287964]
[1645294766782,0.49634661,2761.5,2761.1,0.00343863]
[1645294766981,0.49634661,2761.5,2761.1,1.54208798]
[1645294767239,0.49634661,2761.5,2761.2,1.53864935]
[1645294767437,0.90611,2761.3,2761.1,0.0063183]
[1645294767644,0.90611,2761.3,2761.2,1.53862665]
[1645294767835,0.90611,2761.3,2761.1,0.00287967]
[1645294768035,0.90611,2761.3,2761.0,0.00343863]
[1645294768234,0.90611,2761.3,2761.1,0.00291696]
[1645294768441,0.90611,2761.3,2761.1,1.54154361]
[1645294768633,0.90611,2761.3,2761.2,1.53862665]
[1645294769238,0.90611,2761.3,2760.9,1.53862665]
[1645294769439,0.90611,2761.3,2761.1,0.00291696]
[1645294769638,0.90611,2761.3,2761.1,1.54154361]
[1645294769838,0.90611,2761.3,2761.2,1.53862665]
[1645294770637,1.81234,2761.3,2761.1,0.00291696]
[1645294771574,1.81234,2761.3,2760.9,1.53862665]
[1645294771773,1.81234,2761.3,2761.0,1.53862665]
[1645294771973,1.81234,2761.3,2761.1,1.5415383]
[1645294772173,1.81234,2761.3,2761.1,0.00291165]
[1645294772978,1.81234,2761.3,2760.8,1.53881142]
[1645294773175,1.81234,2761.3,2760.9,1.53881142]
[1645294773375,1.81234,2761.3,2761.1,0.00291165]
[1645294773975,1.81234,2761.3,2761.0,1.53881142]
[1645294774276,1.81248,2761.2,2760.9,0.00343863]
[1645294774478,0.90627,2761.0,2760.5,0.00343863]
[1645294775126,0.90627,2761.0,2760.3,1.54230208]
[1645294775531,0.90627,2761.0,2760.6,0.0029126]
[1645294775728,0.90634,2760.9,2760.6,0.0029126]
[1645294775929,1.8126003,2761.0,2760.9,0.73517258]
[1645294776126,1.8126003,2761.0,2760.9,2.27403603]
[1645294776327,2.7189003,2761.0,2760.9,2.27403603]
[1645294776931,2.7189003,2761.0,2760.9,0.73517258]
[1645294777530,3.3189003,2761.0,2760.9,0.73517258]
[1645294780284,4.3189003,2761.0,2760.9,0.73517258]
[1645294781782,4.40501646,2761.0,2760.9,0.73517258]
[1645294781980,4.33197041,2761.0,2760.9,0.73517258]
[1645294782932,4.85397041,2761.0,2760.9,0.73517258]
[1645294784031,3.94764011,2761.0,2760.9,0.73517258]
[1645294786289,0.53507011,2761.0,2760.9,0.73517258]
[1645294786492,0.01307011,2761.0,2760.9,5.77393407]
[1645294786687,0.01307011,2761.0,2760.9,2.27393407]
[1645294786890,1.01834661,2761.5,2760.9,2.27393407]
[1645294787090,0.49634661,2761.5,2761.0,1.53876149]
[1645294787498,0.49634661,2761.5,2761.0,1.54207408]
[1645294787499,2.30853661,2761.5,2761.0,1.54207408]
[1645294788496,0.6,2761.4,2760.9,0.73861121]
[1645294788691,0.6,2761.4,2761.0,0.00331262]
[1645294788692,1.81248,2761.3,2761.0,0.00331262]
[1645294788891,0.522,2761.2,2761.0,0.00331262]
[1645294789291,0.822,2761.2,2761.0,0.00331262]
[1645294789728,1.81264,2761.1,2760.9,0.73861121]
[1645294789930,1.81264,2761.1,2761.0,0.00331254]
[1645294790928,2.71889,2761.1,2760.9,0.73861121]
[1645294791133,2.71889,2761.1,2760.9,0.73848515]
[1645294791134,3.31889,2761.1,2760.9,0.73848515]
[1645294791330,0.9063,2761.0,2760.9,0.73848515]
[1645294792131,0.9063,2761.0,2760.9,0.73517258]
[1645294792531,1.2063,2761.0,2760.9,0.73517258]
[1645294794380,4.0458237,2761.0,2760.9,0.73517258]
[1645294797236,0.18929811,2761.2,2760.9,2.27404323]
[1645294797427,6.5383,2761.9,2761.0,1.53887065]
[1645294797627,3.5111,2761.9,2761.0,1.53887065]
[1645294797827,0.6,2761.7,2761.0,1.53887065]
[1645294798028,0.3,2761.7,2761.0,1.53887065]
[1645294798230,3.41208,2761.8,2761.0,1.5417904]
[1645294798628,0.90604,2761.5,2761.0,1.5417904]
[1645294799229,0.90604,2761.5,2761.0,1.53887065]
[1645294799630,0.90604,2761.5,2761.0,1.54179035]
[1645294800531,1.39694813,2761.7,2761.0,1.53887065]
[1645294800730,1.39694813,2761.7,2761.0,1.54179035]
[1645294801584,1.39694813,2761.7,2761.0,1.53887065]
[1645294801979,0.01221283,2761.6,2761.0,1.54178214]
[1645294802886,0.01221283,2761.6,2761.0,1.53887065]
[1645294803081,0.01221283,2761.6,2761.0,1.54178211]
[1645294804186,0.01221283,2761.6,2761.0,1.53887065]
[1645294804385,0.01221283,2761.6,2761.0,1.54178211]
[1645294805225,0.01221283,2761.6,2761.0,1.53887065]
[1645294805429,0.90604,2761.5,2761.0,1.53887065]
[1645294805626,0.90604,2761.5,2761.0,1.54178322]
[1645294806428,0.90604,2761.5,2761.0,1.53887065]
[1645294806832,0.90604,2761.5,2761.0,1.54178319]
[1645294807229,0.90613,2761.4,2761.0,1.54178319]
[1645294807828,0.90613,2761.4,2761.0,1.53887065]
[1645294808028,0.90613,2761.4,2761.0,1.54178316]
[1645294808879,0.90613,2761.4,2761.0,1.53887065]
[1645294809079,0.90613,2761.4,2761.0,1.54204228]
[1645294809678,1.81217,2761.5,2761.0,1.54204228]
[1645294810080,1.81217,2761.5,2761.0,1.53887065]
[1645294810279,1.81217,2761.5,2761.0,1.54204231]
[1645294810983,0.3,2761.4,2761.0,1.54204231]
[1645294811179,1.8123975,2761.3,2761.0,1.53887065]
[1645294811381,0.90621,2761.2,2761.0,1.53887065]
[1645294811585,0.90621,2761.2,2761.0,1.54204231]
[1645294812430,0.90621,2761.2,2761.0,1.53887065]
[1645294812431,1.42821,2761.2,2761.0,1.53887065]
[1645294812828,1.42821,2761.2,2761.0,1.54218319]
[1645294813628,1.42821,2761.2,2761.0,1.53887065]
[1645294814035,4.92821,2761.2,2761.0,1.54218319]
[1645294814634,0.3,2761.1,2761.0,1.54218319]
[1645294814832,0.3,2761.1,2761.0,1.53887065]
[1645294815235,0.3,2761.1,2761.0,1.54218319]
[1645294815432,0.822,2761.1,2761.0,1.54218319]
[1645294815878,1.822,2761.1,2761.0,1.54218319]
[1645294816079,0.822,2761.1,2760.9,0.73517258]
[1645294816284,0.90628,2761.0,2760.9,0.73517258]
[1645294816482,1.20628,2761.0,2760.9,0.73848515]
[1645294816880,1.20628,2761.0,2760.9,2.27753879]
[1645294817284,1.20628,2761.0,2760.9,2.27422622]
[1645294818282,2.20628,2761.0,2760.9,2.27422622]
[1645294819381,2.20628,2761.0,2760.9,2.27423356]
[1645294820433,2.20628,2761.0,2760.9,2.27281335]
[1645294820634,1.20628,2761.0,2760.9,2.27281335]
[1645294820832,0.90628,2761.0,2760.9,2.27281335]
[1645294822136,0.90613,2761.2,2760.9,2.27281335]
[1645294822339,1.20613,2761.2,2761.0,1.53906098]
[1645294822537,1.88915964,2761.7,2761.0,1.53906098]
[1645294822737,2.48915964,2761.7,2761.0,1.53906098]
[1645294822937,3.48915964,2761.7,2761.0,1.53906098]
[1645294823135,3.29987813,2761.7,2761.0,1.53906098]
[1645294823579,0.906,2761.6,2761.0,1.54196581]
[1645294823778,2.206,2761.6,2761.0,1.54196581]
[1645294824581,2.206,2761.6,2761.0,1.53906098]
[1645294824889,2.206,2761.6,2761.0,1.54196578]
[1645294825680,2.206,2761.6,2761.0,1.53906098]
[1645294825880,2.206,2761.6,2761.0,1.54196578]
[1645294826880,2.206,2761.6,2761.0,1.53906098]
[1645294827128,2.206,2761.6,2761.0,1.54196578]
[1645294827533,0.906,2761.6,2761.2,0.0356199]
[1645294827729,0.906,2761.6,2761.3,1.53906098]
[1645294829531,1.206,2761.6,2761.3,1.53906098]
[1645294829731,2.11207,2761.6,2761.3,1.53906098]
[1645294829932,1.81228,2761.5,2761.3,1.53906098]
[1645294830976,1.81228,2761.5,2761.0,0.0029135]
[1645294831378,1.81228,2761.5,2761.0,1.54177029]
[1645294831778,1.81228,2761.5,2761.0,1.53885679]
[1645294831978,1.81228,2761.5,2761.0,1.54176906]
[1645294832978,1.81228,2761.5,2761.0,1.53885679]
[1645294833178,1.81228,2761.5,2761.0,1.54176906]
[1645294833778,5.5,2761.4,2760.9,0.73375237]
[1645294833985,2.3343934,2761.3,2760.9,0.73375237]
[1645294834183,1.81279,2761.1,2760.9,0.73375237]
[1645294834380,0.522,2761.0,2760.9,0.73375237]
[1645294835439,1.51450616,2761.0,2760.9,0.73375237]
[1645294835835,2.51450616,2761.0,2760.9,0.73375237]
[1645294836434,6.01450616,2761.0,2760.9,0.73375237]
[1645294836840,2.51450616,2761.0,2760.9,0.73375237]
[1645294839979,3.5,2760.9,2760.3,0.01553919]
[1645294840187,3.5,2760.9,2759.7,0.1809]
[1645294840188,0.90655,2760.6,2759.5,0.68657084]
[1645294840394,9.91925777,2760.5,2760.3,0.01210056]
[1645294840585,6.527,2760.4,2759.3,0.68657084]
[1645294840878,6.527,2760.4,2759.2,0.68657084]
[1645294840879,6.827,2760.1,2759.2,0.68657084]
[1645294841082,0.522,2760.0,2759.2,0.68657084]
[1645294841281,1.81362,2759.7,2759.2,0.68657084]
[1645294841484,0.56374462,2759.5,2759.2,0.68657084]
[1645294841681,0.522,2759.4,2759.2,0.68657084]
[1645294841881,0.522,2759.4,2759.0,1.18657084]
[1645294842130,1.122,2759.4,2759.0,0.68657084]
[1645294842332,1.81367,2759.3,2758.9,0.68657084]
[1645294842532,3.24252,2759.3,2758.9,0.68657084]
[1645294842735,0.522,2759.3,2759.1,0.00290828]
[1645294842938,0.522,2759.3,2759.2,0.30793035]
[1645294843238,0.522,2760.0,2759.2,0.99450119]
[1645294843435,3.5,2760.2,2759.4,0.30793035]
[1645294843436,0.90646,2760.2,2759.4,0.30793035]
[1645294843632,1.20646,2760.2,2759.4,0.30793035]
[1645294843831,0.60654572,2760.0,2759.4,0.30793035]
[1645294844033,0.60654572,2760.0,2759.5,0.00290809]
[1645294844732,0.90656,2759.9,2759.5,0.00290809]
[1645294844935,0.90656,2759.9,2759.4,0.30793035]
[1645294845132,0.90656,2759.9,2759.6,0.00290801]
[1645294845334,3.31999,2759.9,2759.6,0.00290801]
[1645294846280,4.2266,2759.9,2759.6,0.0029168]
[1645294846482,5.1332448,2759.9,2759.6,0.0029168]
[1645294847282,5.1332448,2759.9,2759.5,0.30793035]
[1645294847681,5.1332448,2759.9,2759.6,0.0029168]
[1645294847883,8.6332448,2759.9,2759.6,0.0029168]
[1645294848082,0.522,2759.8,2759.6,0.0029168]
[1645294848385,3.5,2759.7,2759.6,0.0029168]
[1645294848591,3.5,2759.7,2759.5,0.30793035]
[1645294848592,0.90687,2759.6,2759.5,0.23793035]
[1645294848782,4.92887,2759.6,2759.5,0.23793035]
[1645294848981,6.22887,2759.6,2759.5,0.23793035]
[1645294849634,6.22887,2759.6,2759.5,0.18793035]
[1645294851433,6.31498616,2759.6,2759.4,0.00291535]
[1645294851633,3.5,2759.5,2759.4,0.00291535]
[1645294851839,5.022,2759.5,2759.4,0.00291535]
[1645294852034,5.10811616,2759.5,2759.4,0.00291535]
[1645294852233,5.10811616,2759.5,2759.3,0.01759615]
[1645294852439,1.0,2759.4,2759.3,0.0029154]
[1645294852735,4.5,2759.3,2758.9,0.01166334]
[1645294853035,4.322,2759.2,2758.9,0.01166334]
[1645294853235,5.622,2759.2,2758.9,0.01166334]
[1645294853488,2.7211649,2759.0,2758.2,0.68657084]
[1645294853689,1.42907,2758.9,2758.5,0.01167375]
[1645294853890,1.72907,2758.9,2758.6,1.53988095]
[1645294854684,1.55193074,2758.8,2758.7,1.53988095]
[1645294854883,2.07393074,2758.8,2758.6,0.00291817]
[1645294855688,2.07393074,2758.8,2758.3,1.53988095]
[1645294855884,2.07393074,2758.8,2758.1,0.68657084]
[1645294855885,2.98102184,2758.8,2758.6,0.0029182]
[1645294856192,3.5,2758.7,2758.6,0.0029182]
[1645294856396,3.5,2758.7,2758.6,1.54279915]
[1645294856397,4.022,2758.7,2758.6,1.54279915]
[1645294856691,4.022,2758.7,2758.1,0.01167454]
[1645294856692,5.7218615,2758.6,2758.1,0.01167454]
[1645294856889,5.022,2758.5,2757.4,1.6433]
[1645294857135,0.46790737,2757.9,2757.4,1.6433]
[1645294857335,0.46790737,2757.9,2757.0,3.57287084]
[1645294857336,0.98990737,2757.9,2757.0,3.57287084]
[1645294857533,0.98990737,2757.9,2757.0,0.1812]
[1645294857737,0.98990737,2757.9,2756.9,1.86657084]
[1645294857934,0.98990737,2757.9,2756.9,1.18]
[1645294858334,0.9074106,2757.7,2756.9,1.18]
[1645294858536,0.9074106,2757.7,2757.3,0.00291862]
[1645294858537,0.90751,2757.5,2757.3,0.00291862]
[1645294858836,1.42951,2757.5,2757.3,0.00291862]
[1645294859039,0.522,2757.5,2757.3,0.00291862]
[1645294859234,0.46790737,2757.9,2757.3,0.00291862]
[1645294859436,0.46790737,2757.9,2756.9,0.68657084]
[1645294859635,0.46790737,2757.9,2757.3,0.00291862]
[1645294860239,1.37522737,2757.9,2757.3,0.00291862]
[1645294860436,1.37522737,2757.9,2756.9,0.58948946]
[1645294860637,0.90729,2757.7,2756.8,0.53477493]
[1645294860883,0.46790737,2757.9,2757.5,0.00291852]
[1645294861486,0.25420544,2758.1,2757.5,0.00291852]
[1645294861694,0.522,2758.0,2756.8,0.53477493]
[1645294861886,0.98932313,2758.0,2757.3,0.49932027]
[1645294862286,0.522,2758.0,2757.3,0.49932027]
[1645294862488,0.03157437,2757.9,2757.3,0.49932027]
[1645294862690,0.01421723,2757.8,2757.3,0.49932027]
[1645294865050,1.723e-05,2757.8,2757.3,11.53932027]
[1645294865254,0.04993,2758.3,2757.8,0.04263446]
[1645294865452,0.04993,2758.3,2757.9,5.0]
[1645294865453,3e-05,2758.3,2757.9,5.0]
[1645294865846,3e-05,2758.3,2758.0,1.1655]
[1645294866148,3e-05,2758.3,2758.0,1.3467]
[1645294866347,3.50315776,2759.4,2758.0,1.3467]
[1645294866647,4.40674,2759.4,2758.0,1.3467]
[1645294866848,4.40748284,2759.4,2758.0,12.3867]
[1645294867053,4.40748284,2759.4,2758.8,0.47588808]
[1645294867248,4.40748284,2759.4,2758.0,12.3867]
[1645294867249,0.90989811,2759.4,2758.0,12.3867]
[1645294867448,0.90989811,2759.4,2758.0,15.64938731]
[1645294867648,0.00315811,2759.4,2758.1,11.94665]
[1645294867848,0.53220312,2759.6,2758.2,3.26409001]
[1645294868047,0.00315842,2759.4,2758.2,3.26409001]
[1645294868249,0.00315842,2759.4,2758.7,0.50584644]
[1645294868884,5.31361,2759.5,2758.0,1.3467]
[1645294869085,5.31361,2759.5,2758.0,1.1655]
[1645294869283,1.52511783,2759.4,2758.0,1.1655]
[1645294869587,3.5,2759.3,2758.0,1.1655]
[1645294869783,2.07511783,2759.4,2758.0,1.1655]
[1645294869984,0.52511783,2759.4,2758.5,0.6500998]
[1645294870185,1.71970312,2759.6,2758.5,0.6500998]
[1645294870186,0.53220312,2759.6,2758.5,0.6500998]
[1645294870387,0.00311762,2759.4,2758.5,0.6500998]
[1645294871285,1.43890312,2759.6,2758.5,0.6500998]
[1645294871684,0.00311777,2759.4,2758.5,0.6500998]
[1645294872135,0.90677,2759.3,2758.5,0.6500998]
[1645294872630,0.51068142,2759.1,2758.0,1.3467]
[1645294872831,0.51068142,2759.1,2758.9,0.04553428]
[1645294873031,0.90677,2759.3,2758.9,0.04553428]
[1645294873633,0.1495626,2759.4,2758.9,0.04553428]
[1645294873831,0.14656883,2759.4,2758.9,0.04553428]
[1645294874031,0.14956271,2759.4,2758.9,0.04553428]
[1645294875036,0.14656883,2759.4,2758.9,0.04553428]
[1645294875235,0.14956274,2759.4,2758.9,0.04553428]
[1645294876191,0.14656883,2759.4,2758.9,0.04553428]
[1645294876395,1.05620255,2759.4,2758.9,0.04553428]
[1645294876594,1.05620255,2759.4,2758.8,0.5125442]
[1645294876796,1.05620255,2759.4,2758.9,1.53978952]
[1645294877198,1.05620255,2759.4,2759.1,0.03405935]
[1645294877199,0.95147929,2759.4,2759.1,0.03405935]
[1645294877393,0.94858557,2759.4,2759.1,0.03405935]
[1645294877593,0.95147929,2759.4,2759.1,0.03405935]
[1645294878595,0.94858557,2759.4,2759.1,0.03405935]
[1645294878795,0.95147933,2759.4,2759.1,0.03405935]
[1645294878994,1.85825933,2759.4,2759.1,0.03405935]
[1645294879837,1.85536557,2759.4,2759.1,0.03405935]
[1645294880035,1.85826944,2759.4,2759.1,0.03405935]
[1645294881035,1.85536557,2759.4,2759.2,1.5397779]
[1645294881235,1.85826944,2759.4,2759.2,1.5397779]
[1645294881436,0.95148944,2759.4,2759.2,1.5397779]
[1645294881636,2.72039,2759.5,2759.4,0.69094555]
[1645294887435,2.72039,2759.5,2759.4,0.72344347]
[1645294892791,2.76326602,2759.5,2759.4,0.69094555]
[1645294895738,3.06326602,2759.5,2759.4,0.69094555]
[1645294900590,2.76326602,2759.5,2759.4,0.69094555]
[1645294902339,2.72039,2759.5,2759.4,0.72351829]
[1645294902842,3.02039,2759.5,2759.4,0.72351829]
[1645294905344,3.02039,2759.5,2759.4,0.7221532]
[1645294906394,3.02039,2759.5,2759.4,2.26196235]
[1645294906990,2.72039,2759.5,2759.4,2.26196235]
[1645294907190,2.72039,2759.5,2759.4,2.25302183]
[1645294913783,3.02039,2759.5,2759.4,2.25302183]
[1645294916189,0.3,2759.5,2759.4,2.25302183]
[1645294916788,0.00288285,2759.6,2759.4,2.25302183]
[1645294916990,0.18937046,2759.9,2759.5,1.53980915]
[1645294917253,1.2307,2760.5,2759.6,0.00864855]
[1645294917451,1.2307,2760.5,2759.7,1.53980915]
[1645294917849,0.59504037,2760.3,2759.7,1.53980915]
[1645294918450,0.00291962,2760.2,2759.7,1.53980915]
[1645294919451,0.59504037,2760.3,2759.7,1.53980915]
[1645294919657,0.0029197,2760.1,2759.7,1.53980915]
[1645294920358,0.00197,2760.1,2759.7,1.53980915]
[1645294920553,0.59504037,2760.3,2759.7,1.53980915]
[1645294921989,0.00291512,2760.1,2759.7,1.53980915]
[1645294922989,3.95007,2760.5,2759.7,1.53980915]
[1645294922990,1.2307,2760.5,2759.7,1.53980915]
[1645294923191,0.00291516,2760.0,2759.7,1.53980915]
[1645294924189,0.02603656,2760.2,2759.7,1.53980915]
[1645294924389,0.00291519,2760.0,2759.7,1.53980915]
[1645294925438,0.02603656,2760.2,2759.7,1.53980915]
[1645294925738,0.00291512,2760.0,2759.7,1.53980915]
[1645294926643,0.02603656,2760.2,2759.7,1.53980915]
[1645294926839,0.00291512,2760.0,2759.7,1.53980915]
[1645294927841,0.02603656,2760.2,2759.7,1.53980915]
[1645294928041,0.00291512,2760.0,2759.7,1.53980915]
[1645294928587,0.02910207,2759.9,2759.7,1.53980915]
[1645294929689,0.02910207,2759.9,2759.7,2.18727919]
[1645294929890,0.02910207,2759.9,2759.8,1.53980915]
[1645294931095,0.02910207,2759.9,2759.7,1.53980915]
[1645294933338,0.00291511,2760.0,2759.7,1.53980915]
[1645294933543,0.00291511,2760.0,2759.8,0.03937273]
[1645294933738,0.90641,2760.4,2759.9,1.53980915]
[1645294933938,0.00291511,2760.0,2759.9,1.53980915]
[1645294935039,0.90641,2760.4,2759.9,1.53980915]
[1645294935241,0.00291506,2760.1,2759.9,1.53980915]
[1645294936088,0.90641,2760.4,2759.9,1.53980915]
[1645294936488,0.00291503,2760.1,2759.9,1.53980915]
[1645294937287,0.90641,2760.4,2759.9,1.53980915]
[1645294937687,0.00291503,2760.1,2759.9,1.53980915]
[1645294937887,0.00291503,2760.1,2759.9,1.56327921]
[1645294938090,0.00291503,2760.1,2760.0,1.53980915]
[1645294938487,0.90647,2760.2,2760.0,1.53980915]
[1645294938887,0.90938501,2760.2,2760.0,1.53980915]
[1645294939743,0.90647,2760.2,2760.0,1.53980915]
[1645294939940,0.90938498,2760.2,2760.0,1.53980915]
[1645294940140,0.00291498,2760.2,2760.0,1.53980915]
[1645294940942,0.9064,2760.4,2760.0,1.53980915]
[1645294941142,0.60311922,2760.1,2760.0,1.53980915]
[1645294942146,0.60311922,2760.1,2759.9,0.02347006]
[1645294942350,0.522,2760.0,2759.9,0.02347006]
[1645294942743,0.522,2760.0,2759.8,0.02343963]
[1645294943591,0.52491507,2760.0,2759.8,0.02343963]
[1645294944291,3.5,2759.9,2759.8,0.02244587]
[1645294944492,4.40672,2759.9,2759.8,0.02244587]
[1645294944692,4.40672,2759.9,2759.6,0.00864855]
[1645294944693,6.22872,2759.9,2759.6,0.00864855]
[1645294944901,6.52872,2759.9,2759.6,0.00864855]
[1645294946095,7.43553,2759.9,2759.6,0.00864855]
[1645294946293,8.29235,2759.9,2759.6,0.00864855]
[1645294946496,1.0,2759.8,2759.6,0.00864855]
[1645294946694,7.6495901,2759.7,2759.6,0.00864855]
[1645294946894,8.9495901,2759.7,2759.6,0.00864855]
[1645294947546,6.96314331,2759.6,2759.4,0.68958046]
[1645294947742,4.322,2759.5,2759.4,0.68958046]
[1645294948146,5.322,2759.5,2759.4,0.68958046]
[1645294948341,3.5,2759.4,2758.5,0.0033989]
[1645294948541,0.9070299,2759.2,2758.5,1.54632885]
[1645294948741,7.12815,2759.1,2758.6,1.54341234]
[1645294948941,7.12815,2759.1,2758.7,0.0033989]
[1645294949146,3.62815,2759.1,2758.7,0.0033989]
[1645294949741,3.62815,2759.1,2758.6,1.54001344]
[1645294949943,0.55495116,2758.7,2758.6,0.0033989]
[1645294950147,0.90701,2758.9,2758.8,1.08777396]
[1645294950148,1.39602602,2758.9,2758.8,1.08777396]
[1645294950544,1.39602602,2758.9,2758.8,2.62785867]
[1645294951390,0.48901602,2758.9,2758.8,2.62785867]
[1645294951593,3.98901602,2758.9,2758.8,1.08777396]
[1645294951992,0.48901602,2758.9,2758.8,1.08777396]
[1645294955137,3.98901602,2758.9,2758.8,1.08777396]
[1645294955348,5.58901602,2758.9,2758.8,1.08777396]
[1645294955938,5.58901602,2758.9,2758.8,1.02380572]
[1645294956138,5.58901602,2758.9,2757.9,0.01166739]
[1645294956139,5.0,2758.8,2757.9,0.01166739]
[1645294956341,2.72198,2758.4,2758.0,1.54037112]
[1645294956538,3.54398,2758.4,2758.0,1.54037112]
[1645294956738,3.54398,2758.4,2758.0,0.0033989]
[1645294956739,1.3,2758.3,2758.0,0.0033989]
[1645294956937,1.3,2758.3,2757.9,1.54042436]
[1645294957136,1.3,2758.3,2757.9,1.54382326]
[1645294957137,3.11464,2758.3,2757.9,1.54382326]
[1645294957538,2.33960908,2758.0,2757.9,1.54382326]
[1645294957737,2.63960908,2758.0,2757.9,1.54042436]
[1645294957941,2.41461,2758.0,2757.9,1.54042436]
[1645294958136,2.41461,2758.0,2757.8,0.04263446]
[1645294958589,0.6,2758.0,2757.8,0.04263446]
[1645294958790,1.5072892,2758.1,2757.8,0.04263446]
[1645294958989,1.5072892,2758.1,2757.9,1.54044339]
[1645294959192,1.81459,2758.0,2757.9,1.54044339]
[1645294959791,2.11459,2758.0,2757.9,1.54044339]
[1645294960395,1.81459,2758.0,2757.8,0.04595122]
[1645294960597,0.9073,2758.0,2757.8,0.04595122]
[1645294960794,1.8143,2758.2,2757.9,1.54035812]
[1645294961092,0.90712,2758.2,2757.9,1.54375702]
[1645294961493,0.90712,2758.2,2758.0,3.5]
[1645294961697,1.8142394,2758.8,2758.0,3.5]
[1645294961698,0.00331539,2759.0,2758.1,5.04035812]
[1645294961895,0.00331539,2759.0,2758.2,1.54035812]
[1645294962154,0.00331539,2759.0,2758.3,3.5]
[1645294962449,0.00331539,2759.0,2758.4,1.54035812]
[1645294962644,6.6797,2759.4,2758.5,0.0033989]
[1645294962847,0.95365559,2758.9,2758.5,0.0033989]
[1645294963149,0.9069,2758.9,2758.4,0.00331652]
[1645294963548,0.9069,2758.9,2758.4,0.00671542]
[1645294963747,0.9069,2758.9,2758.4,0.0033989]
[1645294963950,0.9069,2758.9,2758.4,0.00331655]
[1645294964348,0.9069,2758.9,2758.5,0.51782203]
[1645294964548,0.9069,2758.9,2758.5,0.52122093]
[1645294964748,0.9069,2758.9,2758.5,0.0033989]
[1645294964951,0.9069,2758.9,2758.1,0.0033989]
[1645294965148,1.8142,2758.7,2758.4,0.00331658]
[1645294965899,1.8142,2758.7,2758.4,0.61341196]
[1645294966087,1.8142,2758.7,2758.4,0.61349428]
[1645294966587,1.8142,2758.7,2758.4,0.61681076]
[1645294967389,1.8142,2758.7,2758.6,0.03980263]
[1645294972640,2.1142,2758.7,2758.4,0.00331655]
[1645294972841,1.8142,2758.7,2758.4,0.00331655]
[1645294973389,1.8142,2758.7,2758.3,0.04342256]
[1645294973698,1.8142,2758.7,2758.4,0.00331648]
[1645294974593,1.8142,2758.7,2758.3,0.04342256]
[1645294974989,1.8142,2758.7,2758.4,0.00331648]
[1645294975792,1.8142,2758.7,2758.3,0.04342256]
[1645294975993,1.8142,2758.7,2758.4,0.00331648]
[1645294976993,1.8142,2758.7,2758.3,0.04342256]
[1645294977241,1.8142,2758.7,2758.4,0.00331648]
[1645294977441,1.8142,2758.7,2758.6,0.03875478]
[1645294978048,2.1142,2758.7,2758.6,0.03875478]
[1645294978243,3.1142,2758.7,2758.6,0.03875478]
[1645294978847,6.47831915,2758.7,2758.6,0.03875478]
[1645294979046,3.6362,2758.7,2758.6,0.03875478]
[1645294981294,0.55985322,2758.6,2757.5,4.1628861]
[1645294981498,0.55985322,2758.6,2757.6,1.54032794]
[1645294981499,0.90714,2758.2,2757.6,1.54032794]
[1645294981694,0.90714,2758.2,2757.7,1.54032794]
[1645294981892,0.90714,2758.2,2757.8,1.54032794]
[1645294982194,1.81428,2758.4,2758.2,0.73588993]
[1645294982995,0.90712,2758.3,2758.2,0.73588993]
[1645294985144,0.90712,2758.3,2758.2,2.27624416]
[1645294986345,0.00331626,2758.4,2758.2,2.27624416]
[1645294986549,4.90368,2758.6,2758.3,1.54035423]
[1645294986550,1.81408,2758.6,2758.3,1.54035423]
[1645294986946,0.00331626,2758.4,2758.3,1.54035423]
[1645294987647,0.91044626,2758.4,2758.3,1.54035423]
[1645294987850,0.90713,2758.4,2758.3,1.54035423]
[1645294988795,0.80713,2758.4,2758.3,1.54035423]
[1645294992638,0.85979536,2758.4,2758.3,1.54035423]
[1645294992839,0.85979536,2758.4,2758.3,1.57797807]
[1645294997596,0.88629056,2758.4,2758.3,1.57797807]
[1645294999198,4.98629056,2758.4,2758.3,1.57797807]
[1645294999396,5.50829056,2758.4,2758.3,1.57797807]
[1645294999647,5.50829056,2758.4,2758.3,0.03762384]
[1645295000846,6.50829056,2758.4,2758.3,0.03762384]
[1645295002047,5.0,2758.3,2758.2,0.73588993]
[1645295002248,10.61234467,2758.3,2758.2,0.73588993]
[1645295002443,5.61234467,2758.3,2758.2,0.73588993]
[1645295002844,8.62853809,2758.3,2758.2,0.38903279]
[1645295004294,8.62853809,2758.3,2758.0,0.00309449]
[1645295004295,6.0,2758.2,2758.0,0.00309449]
[1645295004495,4.92948,2758.1,2758.0,0.00309449]
[1645295004693,6.52948,2758.1,2757.4,1.54064192]
[1645295004995,1.0,2758.0,2757.5,1.50302263]
[1645295005292,0.522,2757.9,2757.1,0.68249596]
[1645295005594,0.822,2757.9,2757.1,0.68249596]
[1645295005792,0.49812548,2757.8,2757.1,1.32467939]
[1645295005992,0.49812548,2757.8,2757.2,0.68249596]
[1645295006191,0.49812548,2757.8,2757.1,1.32467939]
[1645295008240,0.49812548,2757.8,2757.1,0.68249596]
[1645295008241,0.90731,2757.7,2757.1,0.68249596]
[1645295008441,0.49812548,2757.8,2757.7,0.73599068]
[1645295008442,1.40546548,2757.8,2757.7,0.73599068]
[1645295008641,1.70546548,2757.8,2757.7,0.73599068]
[1645295009642,2.61282548,2757.8,2757.7,0.73599068]
[1645295011189,1.70548548,2757.8,2757.7,0.73599068]
[1645295013194,1.74931128,2757.8,2757.7,0.73599068]
[1645295014399,6.24931128,2757.8,2757.2,0.00331742]
[1645295014644,1.81515,2757.5,2757.2,0.00331742]
[1645295014843,0.90767,2757.2,2756.5,0.49318637]
[1645295015043,0.90767,2757.2,2756.5,0.46318637]
[1645295015241,0.90767,2757.2,2756.6,0.04149491]
[1645295015450,0.50163803,2757.1,2756.6,0.04149491]
[1645295015642,0.90763,2757.0,2756.6,0.04149491]
[1645295015844,0.90763,2757.0,2756.5,0.04206334]
[1645295016246,5.9677714,2757.4,2756.5,0.04206334]
[1645295016247,0.0438258,2757.8,2756.5,0.04206334]